[Event "Titled Tuesday Blitz November 08 Early 2022"]
[White "Artemiev, Vladislav"]
[Black "Harshavardhan G B"]
[WhiteFideId "24101605"]
[BlackFideId "25059009"]
[WhiteElo "2802"]
[BlackElo "2333"]
[Result "1-0"]
[Round "11"]
[TimeControl "180+1"]
[Date "2022.11.08"]
[WhiteClock "0:00:24"]
[BlackClock "0:00:16"]

1. Nf3 {[%clk 0:03:00]}  Nf6 {[%clk 0:02:59]} 2. Ng1 {[%clk 0:03:01]}  g6 {[%clk 0:02:59]} 3. Nf3 {[%clk 0:03:02]}  Bg7 {[%clk 0:02:59]} 4. g3 {[%clk 0:02:51]}  O-O {[%clk 0:02:59]} 5. Bg2 {[%clk 0:02:50]}  d6 {[%clk 0:03:00]} 6. O-O {[%clk 0:02:50]}  e5 {[%clk 0:02:59]} 7. d3 {[%clk 0:02:49]}  Nc6 {[%clk 0:02:58]} 8. Nc3 {[%clk 0:02:48]}  h6 {[%clk 0:02:50]} 9. e4 {[%clk 0:02:44]}  Be6 {[%clk 0:02:49]} 10. Re1 {[%clk 0:02:42]}  Qd7 {[%clk 0:02:47]} 11. Be3 {[%clk 0:02:35]}  Rae8 {[%clk 0:02:45]} 12. d4 {[%clk 0:02:28]}  Bg4 {[%clk 0:02:04]} 13. dxe5 {[%clk 0:02:23]}  Nxe5 {[%clk 0:02:03]} 14. Nxe5 {[%clk 0:02:21]}  dxe5 {[%clk 0:02:04]} 15. Qxd7 {[%clk 0:02:20]}  Nxd7 {[%clk 0:02:02]} 16. Nb5 {[%clk 0:02:16]}  c6 {[%clk 0:02:00]} 17. Nd6 {[%clk 0:02:12]}  Ra8 {[%clk 0:01:51]} 18. f3 {[%clk 0:01:40]}  Be6 {[%clk 0:01:49]} 19. Red1 {[%clk 0:01:40]}  b6 {[%clk 0:01:46]} 20. Bf1 {[%clk 0:01:38]}  Rfd8 {[%clk 0:01:39]} 21. Bc4 {[%clk 0:01:38]}  Nf8 {[%clk 0:01:36]} 22. Bxe6 {[%clk 0:01:18]}  Nxe6 {[%clk 0:01:34]} 23. c3 {[%clk 0:01:18]}  Bf8 {[%clk 0:01:30]} 24. Nc4 {[%clk 0:01:17]}  f6 {[%clk 0:01:29]} 25. b4 {[%clk 0:01:10]}  Kf7 {[%clk 0:01:27]} 26. a4 {[%clk 0:01:05]}  Ke8 {[%clk 0:01:17]} 27. Kf2 {[%clk 0:01:00]}  h5 {[%clk 0:01:05]} 28. Ke2 {[%clk 0:00:56]}  Rab8 {[%clk 0:01:02]} 29. Rxd8+ {[%clk 0:00:51]}  Rxd8 {[%clk 0:01:00]} 30. Nd2 {[%clk 0:00:49]}  c5 {[%clk 0:00:50]} 31. b5 {[%clk 0:00:49]}  Nc7 {[%clk 0:00:50]} 32. Nc4 {[%clk 0:00:47]}  Kf7 {[%clk 0:00:48]} 33. f4 {[%clk 0:00:44]}  exf4 {[%clk 0:00:38]} 34. Bxf4 {[%clk 0:00:44]}  Ne6 {[%clk 0:00:28]} 35. a5 {[%clk 0:00:44]}  g5 {[%clk 0:00:24]} 36. axb6 {[%clk 0:00:43]}  axb6 {[%clk 0:00:20]} 37. Ra7+ {[%clk 0:00:42]}  Kg6 {[%clk 0:00:20]} 38. Bc7 {[%clk 0:00:39]}  Nxc7 {[%clk 0:00:17]} 39. Rxc7 {[%clk 0:00:40]}  Ra8 {[%clk 0:00:16]} 40. Nxb6 {[%clk 0:00:35]}  Ra2+ {[%clk 0:00:15]} 41. Kd3 {[%clk 0:00:35]}  Rb2 {[%clk 0:00:14]} 42. Nd7 {[%clk 0:00:31]}  Bd6 {[%clk 0:00:14]} 43. Rc6 {[%clk 0:00:29]}  Be7 {[%clk 0:00:14]} 44. b6 {[%clk 0:00:27]}  Rxh2 {[%clk 0:00:13]} 45. b7 {[%clk 0:00:26]}  Rb2 {[%clk 0:00:13]} 46. b8=Q {[%clk 0:00:25]}  Rxb8 {[%clk 0:00:13]} 47. Nxb8 {[%clk 0:00:26]}  h4 {[%clk 0:00:13]} 48. gxh4 {[%clk 0:00:27]}  gxh4 {[%clk 0:00:14]} 49. Ke2 {[%clk 0:00:26]}  h3 {[%clk 0:00:15]} 50. Kf3 {[%clk 0:00:25]}  h2 {[%clk 0:00:16]} 51. Kg2 {[%clk 0:00:25]}  h1=Q+ {[%clk 0:00:16]} 52. Kxh1 {[%clk 0:00:24]} 1-0


[Site "https://www.chess.com"]

[Event "Titled Tuesday Blitz November 08 Early 2022"]
[White "Avazkhonov, Alikhon"]
[Black "Parpiev, Isaak"]
[WhiteFideId "14208504"]
[BlackFideId "34281576"]
[WhiteElo "1739"]
[BlackElo "2094"]
[Result "0-1"]
[Round "11"]
[TimeControl "180+1"]
[Date "2022.11.09"]
[WhiteClock "0:00:01"]
[BlackClock "0:00:55"]

1. d4 {[%clk 0:03:00]}  Nf6 {[%clk 0:02:54]} 2. c4 {[%clk 0:03:01]}  g6 {[%clk 0:02:54]} 3. Nc3 {[%clk 0:03:01]}  Bg7 {[%clk 0:02:55]} 4. e4 {[%clk 0:03:02]}  O-O {[%clk 0:02:55]} 5. f3 {[%clk 0:03:02]}  c5 {[%clk 0:02:56]} 6. dxc5 {[%clk 0:02:35]}  Na6 {[%clk 0:02:50]} 7. Be3 {[%clk 0:02:35]}  Qc7 {[%clk 0:02:48]} 8. Nb5 {[%clk 0:02:06]}  Qc6 {[%clk 0:02:47]} 9. Ne2 {[%clk 0:01:10]}  Nxc5 {[%clk 0:02:38]} 10. Ned4 {[%clk 0:01:11]}  Qb6 {[%clk 0:02:38]} 11. b4 {[%clk 0:01:07]}  Na6 {[%clk 0:02:12]} 12. Nf5 {[%clk 0:00:53]}  Qd8 {[%clk 0:02:12]} 13. Nxg7 {[%clk 0:00:53]}  Kxg7 {[%clk 0:02:12]} 14. e5 {[%clk 0:00:51]}  Ne8 {[%clk 0:02:09]} 15. Qd2 {[%clk 0:00:51]}  Kg8 {[%clk 0:02:06]} 16. c5 {[%clk 0:00:40]}  d5 {[%clk 0:01:50]} 17. cxd6 {[%clk 0:00:28]}  exd6 {[%clk 0:01:48]} 18. Nxd6 {[%clk 0:00:27]}  Nxd6 {[%clk 0:01:47]} 19. exd6 {[%clk 0:00:25]}  Re8 {[%clk 0:01:37]} 20. O-O-O {[%clk 0:00:25]}  Nxb4 {[%clk 0:01:29]} 21. Qxb4 {[%clk 0:00:20]}  Rxe3 {[%clk 0:01:28]} 22. Qd4 {[%clk 0:00:21]}  Re8 {[%clk 0:01:15]} 23. d7 {[%clk 0:00:21]}  Bxd7 {[%clk 0:01:14]} 24. Qxd7 {[%clk 0:00:22]}  Rc8+ {[%clk 0:01:14]} 25. Kb1 {[%clk 0:00:19]}  Qb6+ {[%clk 0:01:09]} 26. Ka1 {[%clk 0:00:10]}  Qf6+ {[%clk 0:01:04]} 27. Qd4 {[%clk 0:00:05]}  Rc1+ {[%clk 0:00:53]} 28. Kb2 {[%clk 0:00:05]}  Qxd4+ {[%clk 0:00:53]} 29. Rxd4 {[%clk 0:00:05]}  Ree1 {[%clk 0:00:53]} 30. Rd7 {[%clk 0:00:03]}  Rxf1 {[%clk 0:00:52]} 31. Rxf1 {[%clk 0:00:04]}  Rxf1 {[%clk 0:00:53]} 32. Rxb7 {[%clk 0:00:03]}  Rf2+ {[%clk 0:00:53]} 33. Kb3 {[%clk 0:00:03]}  a5 {[%clk 0:00:52]} 34. a4 {[%clk 0:00:01]}  Rxg2 {[%clk 0:00:52]} 35. h4 {[%clk 0:00:01]}  Rg3 {[%clk 0:00:51]} 36. Kc4 {[%clk 0:00:01]}  Rxf3 {[%clk 0:00:52]} 37. Kb5 {[%clk 0:00:02]}  Rf5+ {[%clk 0:00:52]} 38. Ka6 {[%clk 0:00:02]}  h6 {[%clk 0:00:51]} 39. Rb5 {[%clk 0:00:03]}  Rf4 {[%clk 0:00:52]} 40. Kxa5 {[%clk 0:00:01]}  Rxh4 {[%clk 0:00:52]} 41. Rb4 {[%clk 0:00:02]}  Rh1 {[%clk 0:00:51]} 42. Kb6 {[%clk 0:00:02]}  Ra1 {[%clk 0:00:52]} 43. a5 {[%clk 0:00:03]}  h5 {[%clk 0:00:52]} 44. a6 {[%clk 0:00:03]}  Kg7 {[%clk 0:00:52]} 45. Kb7 {[%clk 0:00:03]}  g5 {[%clk 0:00:52]} 46. a7 {[%clk 0:00:02]}  g4 {[%clk 0:00:52]} 47. a8=Q {[%clk 0:00:02]}  Rxa8 {[%clk 0:00:53]} 48. Kxa8 {[%clk 0:00:03]}  f5 {[%clk 0:00:53]} 49. Kb7 {[%clk 0:00:03]}  Kf6 {[%clk 0:00:54]} 50. Kc6 {[%clk 0:00:03]}  Ke5 {[%clk 0:00:55]} 51. Kc5 {[%clk 0:00:04]}  h4 {[%clk 0:00:54]} 52. Rb2 {[%clk 0:00:03]}  h3 {[%clk 0:00:54]} 53. Re2+ {[%clk 0:00:03]}  Kf4 {[%clk 0:00:54]} 54. Kd4 {[%clk 0:00:04]}  g3 {[%clk 0:00:55]} 55. Kd3 {[%clk 0:00:03]}  h2 {[%clk 0:00:54]} 56. Re1 {[%clk 0:00:01]}  g2 {[%clk 0:00:55]} 0-1


[Site "https://www.chess.com"]

[Event "Titled Tuesday Blitz November 08 Early 2022"]
[White "Besedes, Danilo"]
[Black "Artemenko, Oleg"]
[WhiteFideId "946796"]
[BlackFideId "14201798"]
[WhiteElo "2352"]
[BlackElo "2287"]
[Result "0-1"]
[Round "11"]
[TimeControl "180+1"]
[Date "2022.11.09"]
[WhiteClock "0:00:09"]
[BlackClock "0:01:25"]

1. Nf3 {[%clk 0:03:00]}  d5 {[%clk 0:02:59]} 2. e3 {[%clk 0:03:00]}  Nf6 {[%clk 0:02:58]} 3. b3 {[%clk 0:03:00]}  g6 {[%clk 0:02:57]} 4. Bb2 {[%clk 0:02:58]}  Bg7 {[%clk 0:02:58]} 5. g3 {[%clk 0:02:58]}  O-O {[%clk 0:02:58]} 6. Bg2 {[%clk 0:02:58]}  Nbd7 {[%clk 0:02:57]} 7. O-O {[%clk 0:02:57]}  Re8 {[%clk 0:02:58]} 8. d4 {[%clk 0:02:56]}  c6 {[%clk 0:02:57]} 9. c4 {[%clk 0:02:56]}  Ne4 {[%clk 0:02:57]} 10. Nc3 {[%clk 0:02:55]}  Nxc3 {[%clk 0:02:57]} 11. Bxc3 {[%clk 0:02:56]}  dxc4 {[%clk 0:02:57]} 12. bxc4 {[%clk 0:02:56]}  Qc7 {[%clk 0:02:56]} 13. Qb3 {[%clk 0:02:37]}  e5 {[%clk 0:02:56]} 14. Rfd1 {[%clk 0:02:24]}  exd4 {[%clk 0:02:55]} 15. exd4 {[%clk 0:02:23]}  Nb6 {[%clk 0:02:55]} 16. Ba5 {[%clk 0:02:10]}  Be6 {[%clk 0:02:53]} 17. Ng5 {[%clk 0:02:07]}  Bg4 {[%clk 0:02:49]} 18. Rd2 {[%clk 0:01:48]}  Qe7 {[%clk 0:02:35]} 19. Ne4 {[%clk 0:01:35]}  Rad8 {[%clk 0:02:23]} 20. Bb4 {[%clk 0:01:14]}  Qe6 {[%clk 0:02:18]} 21. Rc1 {[%clk 0:00:51]}  Rxd4 {[%clk 0:02:10]} 22. Rxd4 {[%clk 0:00:46]}  Bxd4 {[%clk 0:02:11]} 23. Nd6 {[%clk 0:00:42]}  Re7 {[%clk 0:01:55]} 24. Qd3 {[%clk 0:00:32]}  c5 {[%clk 0:01:49]} 25. Re1 {[%clk 0:00:20]}  Qxd6 {[%clk 0:01:39]} 26. Rxe7 {[%clk 0:00:19]}  Qxe7 {[%clk 0:01:37]} 27. Qxd4 {[%clk 0:00:19]}  cxd4 {[%clk 0:01:38]} 28. Bxe7 {[%clk 0:00:19]}  d3 {[%clk 0:01:35]} 29. Bb4 {[%clk 0:00:16]}  Nxc4 {[%clk 0:01:35]} 30. f3 {[%clk 0:00:14]}  Bd7 {[%clk 0:01:31]} 31. Kf2 {[%clk 0:00:14]}  a5 {[%clk 0:01:26]} 32. Bc3 {[%clk 0:00:14]}  b5 {[%clk 0:01:26]} 33. Bf1 {[%clk 0:00:14]}  b4 {[%clk 0:01:25]} 34. Bd4 {[%clk 0:00:11]}  d2 {[%clk 0:01:25]} 35. Be2 {[%clk 0:00:09]}  Ba4 {[%clk 0:01:25]} 0-1


[Site "https://www.chess.com"]

[Event "Titled Tuesday Blitz November 08 Early 2022"]
[White "Cella, Glaucio Dalla Cortt"]
[Black "Rustemov, Alexander"]
[WhiteFideId "2119455"]
[BlackFideId "4119002"]
[WhiteElo "2011"]
[BlackElo "2645"]
[Result "1-0"]
[Round "11"]
[TimeControl "180+1"]
[Date "2022.11.09"]
[WhiteClock "0:00:25"]
[BlackClock "0:00:06"]

1. e4 {[%clk 0:03:00]}  e6 {[%clk 0:02:59]} 2. d4 {[%clk 0:03:00]}  d5 {[%clk 0:02:59]} 3. Nd2 {[%clk 0:03:01]}  b6 {[%clk 0:02:55]} 4. c3 {[%clk 0:02:58]}  dxe4 {[%clk 0:02:55]} 5. Nxe4 {[%clk 0:02:58]}  Bb7 {[%clk 0:02:55]} 6. Bd3 {[%clk 0:02:57]}  Nf6 {[%clk 0:02:45]} 7. Qe2 {[%clk 0:02:57]}  Qd5 {[%clk 0:02:41]} 8. Nxf6+ {[%clk 0:02:50]}  gxf6 {[%clk 0:02:40]} 9. f3 {[%clk 0:02:51]}  Qh5 {[%clk 0:02:30]} 10. Nh3 {[%clk 0:02:16]}  Bd6 {[%clk 0:02:28]} 11. Nf4 {[%clk 0:02:11]}  Qg5 {[%clk 0:01:55]} 12. Nxe6 {[%clk 0:02:06]}  Qh4+ {[%clk 0:01:55]} 13. g3 {[%clk 0:01:22]}  Bxg3+ {[%clk 0:01:54]} 14. Kf1 {[%clk 0:01:23]}  Qh3+ {[%clk 0:01:42]} 15. Qg2 {[%clk 0:01:22]}  Qxe6 {[%clk 0:01:21]} 16. Qxg3 {[%clk 0:01:21]}  Nd7 {[%clk 0:01:21]} 17. Qxc7 {[%clk 0:01:17]}  Bxf3 {[%clk 0:01:14]} 18. Bh6 {[%clk 0:01:18]}  Bxh1 {[%clk 0:01:07]} 19. Re1 {[%clk 0:01:14]}  Ke7 {[%clk 0:00:51]} 20. Rxe6+ {[%clk 0:01:01]}  fxe6 {[%clk 0:00:52]} 21. Bf4 {[%clk 0:01:02]}  Rhd8 {[%clk 0:00:49]} 22. Bb5 {[%clk 0:01:02]}  Rac8 {[%clk 0:00:47]} 23. Qd6+ {[%clk 0:00:57]}  Kf7 {[%clk 0:00:43]} 24. Bxd7 {[%clk 0:00:56]}  Rc6 {[%clk 0:00:43]} 25. Qxc6 {[%clk 0:00:56]}  Bxc6 {[%clk 0:00:43]} 26. Bxc6 {[%clk 0:00:56]}  Rg8 {[%clk 0:00:31]} 27. Kf2 {[%clk 0:00:45]}  Rg4 {[%clk 0:00:30]} 28. Bg3 {[%clk 0:00:44]}  h5 {[%clk 0:00:30]} 29. Bf3 {[%clk 0:00:40]}  Rg5 {[%clk 0:00:07]} 30. h4 {[%clk 0:00:41]}  Ra5 {[%clk 0:00:07]} 31. a3 {[%clk 0:00:38]}  Kg6 {[%clk 0:00:07]} 32. Be4+ {[%clk 0:00:35]}  f5 {[%clk 0:00:07]} 33. Bc6 {[%clk 0:00:31]}  b5 {[%clk 0:00:06]} 34. Bc7 {[%clk 0:00:25]} 1-0


[Site "https://www.chess.com"]

[Event "Titled Tuesday Blitz November 08 Early 2022"]
[White "Chernov, Mikhail"]
[Black "Broca Jimenez, Fernando"]
[WhiteFideId "24143170"]
[BlackFideId "5104742"]
[WhiteElo "2113"]
[BlackElo "2062"]
[Result "1-0"]
[Round "11"]
[TimeControl "180+1"]
[Date "2022.11.09"]
[WhiteClock "0:01:01"]
[BlackClock "0:00:12"]

1. d4 {[%clk 0:02:59]}  Nf6 {[%clk 0:02:59]} 2. Nc3 {[%clk 0:03:00]}  d5 {[%clk 0:02:56]} 3. Bf4 {[%clk 0:03:00]}  e6 {[%clk 0:02:54]} 4. e3 {[%clk 0:03:00]}  Be7 {[%clk 0:02:53]} 5. g4 {[%clk 0:02:56]}  Ne4 {[%clk 0:02:32]} 6. Nxe4 {[%clk 0:02:50]}  dxe4 {[%clk 0:02:33]} 7. Bg2 {[%clk 0:02:49]}  f5 {[%clk 0:02:30]} 8. Ne2 {[%clk 0:02:38]}  Nd7 {[%clk 0:02:03]} 9. Qd2 {[%clk 0:02:26]}  Nf6 {[%clk 0:01:51]} 10. gxf5 {[%clk 0:02:25]}  exf5 {[%clk 0:01:52]} 11. O-O-O {[%clk 0:02:26]}  Be6 {[%clk 0:01:24]} 12. Kb1 {[%clk 0:02:18]}  a5 {[%clk 0:01:14]} 13. Be5 {[%clk 0:02:13]}  c6 {[%clk 0:00:46]} 14. Nf4 {[%clk 0:02:12]}  Bf7 {[%clk 0:00:46]} 15. Bh3 {[%clk 0:02:08]}  g5 {[%clk 0:00:36]} 16. Ne2 {[%clk 0:01:57]}  Be6 {[%clk 0:00:32]} 17. Ng3 {[%clk 0:01:52]}  Qd7 {[%clk 0:00:20]} 18. Rhf1 {[%clk 0:01:32]}  Rf8 {[%clk 0:00:18]} 19. Bg2 {[%clk 0:01:25]}  g4 {[%clk 0:00:18]} 20. h3 {[%clk 0:01:25]}  h6 {[%clk 0:00:17]} 21. Ne2 {[%clk 0:01:22]}  h5 {[%clk 0:00:17]} 22. Nf4 {[%clk 0:01:22]}  Bf7 {[%clk 0:00:17]} 23. hxg4 {[%clk 0:01:22]}  hxg4 {[%clk 0:00:17]} 24. Rh1 {[%clk 0:01:21]}  Nd5 {[%clk 0:00:17]} 25. Nh5 {[%clk 0:01:04]}  Qe6 {[%clk 0:00:11]} 26. Ng7+ {[%clk 0:01:04]}  Kd7 {[%clk 0:00:12]} 27. Nxe6 {[%clk 0:01:05]}  Kxe6 {[%clk 0:00:12]} 28. c4 {[%clk 0:01:01]} 1-0


[Site "https://www.chess.com"]

[Event "Titled Tuesday Blitz November 08 Early 2022"]
[White "Concio, Michael Jr."]
[Black "Rakhmanov, Aleksandr"]
[WhiteFideId "5217873"]
[BlackFideId "4173708"]
[WhiteElo "2236"]
[BlackElo "2530"]
[Result "1-0"]
[Round "11"]
[TimeControl "180+1"]
[Date "2022.11.08"]
[WhiteClock "0:00:10"]
[BlackClock "0:00:16"]

1. e4 {[%clk 0:03:00]}  c5 {[%clk 0:02:59]} 2. Ne2 {[%clk 0:03:00]}  Nf6 {[%clk 0:02:59]} 3. Nbc3 {[%clk 0:03:00]}  d5 {[%clk 0:03:00]} 4. exd5 {[%clk 0:03:00]}  Nxd5 {[%clk 0:03:01]} 5. d4 {[%clk 0:03:01]}  Nxc3 {[%clk 0:02:57]} 6. bxc3 {[%clk 0:03:02]}  e6 {[%clk 0:02:53]} 7. Be3 {[%clk 0:03:00]}  Qa5 {[%clk 0:02:48]} 8. Qd2 {[%clk 0:03:00]}  Nc6 {[%clk 0:02:47]} 9. g3 {[%clk 0:02:58]}  Be7 {[%clk 0:02:42]} 10. Bg2 {[%clk 0:02:57]}  O-O {[%clk 0:02:42]} 11. O-O {[%clk 0:02:49]}  cxd4 {[%clk 0:02:29]} 12. cxd4 {[%clk 0:02:49]}  Qxd2 {[%clk 0:02:30]} 13. Bxd2 {[%clk 0:02:49]}  Rd8 {[%clk 0:02:30]} 14. Be3 {[%clk 0:02:48]}  Bd7 {[%clk 0:02:26]} 15. Rab1 {[%clk 0:02:47]}  b6 {[%clk 0:02:25]} 16. c4 {[%clk 0:02:42]}  Rac8 {[%clk 0:02:23]} 17. Rfc1 {[%clk 0:02:42]}  e5 {[%clk 0:02:09]} 18. Bxc6 {[%clk 0:01:21]}  Bxc6 {[%clk 0:01:30]} 19. d5 {[%clk 0:01:18]}  Bd7 {[%clk 0:00:58]} 20. c5 {[%clk 0:01:17]}  bxc5 {[%clk 0:00:29]} 21. Rb7 {[%clk 0:01:12]}  a6 {[%clk 0:00:27]} 22. Nc3 {[%clk 0:01:08]}  Bf8 {[%clk 0:00:20]} 23. Ne4 {[%clk 0:01:03]}  Bf5 {[%clk 0:00:17]} 24. Nc3 {[%clk 0:00:52]}  Bd3 {[%clk 0:00:17]} 25. Na4 {[%clk 0:00:45]}  Bb5 {[%clk 0:00:13]} 26. Nb6 {[%clk 0:00:34]}  Rb8 {[%clk 0:00:11]} 27. Rxb8 {[%clk 0:00:35]}  Rxb8 {[%clk 0:00:12]} 28. Bxc5 {[%clk 0:00:35]}  g6 {[%clk 0:00:06]} 29. d6 {[%clk 0:00:33]}  Rd8 {[%clk 0:00:04]} 30. Rd1 {[%clk 0:00:31]}  f6 {[%clk 0:00:04]} 31. Nd5 {[%clk 0:00:18]}  Kf7 {[%clk 0:00:05]} 32. Nc7 {[%clk 0:00:18]}  Be2 {[%clk 0:00:05]} 33. Rd2 {[%clk 0:00:18]}  Bc4 {[%clk 0:00:05]} 34. f3 {[%clk 0:00:16]}  Rd7 {[%clk 0:00:05]} 35. Kf2 {[%clk 0:00:15]}  g5 {[%clk 0:00:05]} 36. g4 {[%clk 0:00:14]}  h5 {[%clk 0:00:05]} 37. h3 {[%clk 0:00:15]}  hxg4 {[%clk 0:00:06]} 38. hxg4 {[%clk 0:00:16]}  Be6 {[%clk 0:00:04]} 39. Ke2 {[%clk 0:00:07]}  a5 {[%clk 0:00:04]} 40. Rb2 {[%clk 0:00:06]}  Bxd6 {[%clk 0:00:03]} 41. Bxd6 {[%clk 0:00:06]}  Rxd6 {[%clk 0:00:04]} 42. Nb5 {[%clk 0:00:05]}  Rb6 {[%clk 0:00:03]} 43. a4 {[%clk 0:00:03]}  Bc4+ {[%clk 0:00:03]} 44. Kd2 {[%clk 0:00:04]}  Ke7 {[%clk 0:00:03]} 45. Kc3 {[%clk 0:00:04]}  Bxb5 {[%clk 0:00:04]} 46. axb5 {[%clk 0:00:05]}  Kd6 {[%clk 0:00:04]} 47. Kc4 {[%clk 0:00:06]}  Rb8 {[%clk 0:00:04]} 48. Rd2+ {[%clk 0:00:06]}  Kc7 {[%clk 0:00:05]} 49. Kc5 {[%clk 0:00:05]}  a4 {[%clk 0:00:05]} 50. Kb4 {[%clk 0:00:05]}  a3 {[%clk 0:00:04]} 51. Ra2 {[%clk 0:00:06]}  Ra8 {[%clk 0:00:04]} 52. Rxa3 {[%clk 0:00:04]}  Rxa3 {[%clk 0:00:04]} 53. Kxa3 {[%clk 0:00:05]}  f5 {[%clk 0:00:04]} 54. gxf5 {[%clk 0:00:05]}  e4 {[%clk 0:00:05]} 55. f6 {[%clk 0:00:04]}  e3 {[%clk 0:00:04]} 56. f7 {[%clk 0:00:03]}  e2 {[%clk 0:00:05]} 57. f8=Q {[%clk 0:00:04]}  e1=Q {[%clk 0:00:06]} 58. Qc5+ {[%clk 0:00:04]}  Kb7 {[%clk 0:00:06]} 59. Qc6+ {[%clk 0:00:03]}  Kb8 {[%clk 0:00:06]} 60. b6 {[%clk 0:00:04]}  Qa1+ {[%clk 0:00:06]} 61. Kb4 {[%clk 0:00:04]}  Qb2+ {[%clk 0:00:05]} 62. Kc5 {[%clk 0:00:04]}  Qc3+ {[%clk 0:00:05]} 63. Kd6 {[%clk 0:00:05]}  Qf6+ {[%clk 0:00:04]} 64. Kc5 {[%clk 0:00:05]}  Qc3+ {[%clk 0:00:04]} 65. Kb5 {[%clk 0:00:06]}  Qb3+ {[%clk 0:00:05]} 66. Ka6 {[%clk 0:00:06]}  Qa3+ {[%clk 0:00:04]} 67. Kb5 {[%clk 0:00:06]}  Qb3+ {[%clk 0:00:05]} 68. Ka5 {[%clk 0:00:07]}  Qa3+ {[%clk 0:00:03]} 69. Qa4 {[%clk 0:00:07]}  Qc3+ {[%clk 0:00:03]} 70. Qb4 {[%clk 0:00:04]}  Qa1+ {[%clk 0:00:03]} 71. Kb5 {[%clk 0:00:04]}  Qe5+ {[%clk 0:00:04]} 72. Qc5 {[%clk 0:00:05]}  Qb2+ {[%clk 0:00:05]} 73. Kc6 {[%clk 0:00:04]}  Qf6+ {[%clk 0:00:05]} 74. Qd6+ {[%clk 0:00:04]}  Qxd6+ {[%clk 0:00:04]} 75. Kxd6 {[%clk 0:00:05]}  Kb7 {[%clk 0:00:04]} 76. Ke5 {[%clk 0:00:06]}  Kxb6 {[%clk 0:00:05]} 77. Kf5 {[%clk 0:00:06]}  Kc6 {[%clk 0:00:06]} 78. Kxg5 {[%clk 0:00:07]}  Kd6 {[%clk 0:00:06]} 79. Kf6 {[%clk 0:00:07]}  Kd7 {[%clk 0:00:06]} 80. f4 {[%clk 0:00:08]}  Ke8 {[%clk 0:00:07]} 81. Kg7 {[%clk 0:00:08]}  Ke7 {[%clk 0:00:07]} 82. f5 {[%clk 0:00:09]}  Kd6 {[%clk 0:00:08]} 83. f6 {[%clk 0:00:10]}  Ke5 {[%clk 0:00:09]} 84. f7 {[%clk 0:00:11]}  Ke6 {[%clk 0:00:09]} 85. f8=Q {[%clk 0:00:12]}  Kd5 {[%clk 0:00:10]} 86. Qf6 {[%clk 0:00:08]}  Kc4 {[%clk 0:00:11]} 87. Qe5 {[%clk 0:00:07]}  Kb3 {[%clk 0:00:12]} 88. Qd4 {[%clk 0:00:07]}  Ka2 {[%clk 0:00:13]} 89. Qb6 {[%clk 0:00:07]}  Ka3 {[%clk 0:00:12]} 90. Kf6 {[%clk 0:00:08]}  Ka2 {[%clk 0:00:13]} 91. Ke5 {[%clk 0:00:09]}  Ka1 {[%clk 0:00:14]} 92. Kd4 {[%clk 0:00:10]}  Ka2 {[%clk 0:00:15]} 93. Kc3 {[%clk 0:00:11]}  Ka1 {[%clk 0:00:16]} 94. Qb2# {[%clk 0:00:10]} 1-0


[Site "https://www.chess.com"]

[Event "Titled Tuesday Blitz November 08 Early 2022"]
[White "Cramling Bellon, Anna"]
[Black "Gonzalez Vega, Alejandro"]
[WhiteFideId "32009232"]
[BlackFideId "3510042"]
[WhiteElo "1972"]
[BlackElo "2286"]
[Result "0-1"]
[Round "11"]
[TimeControl "180+1"]
[Date "2022.11.09"]
[WhiteClock "0:00:01"]
[BlackClock "0:00:33"]

1. d4 {[%clk 0:03:00]}  d5 {[%clk 0:02:58]} 2. c4 {[%clk 0:02:58]}  e6 {[%clk 0:02:58]} 3. Nc3 {[%clk 0:02:57]}  Nf6 {[%clk 0:02:58]} 4. cxd5 {[%clk 0:02:56]}  exd5 {[%clk 0:02:58]} 5. Bg5 {[%clk 0:02:57]}  Nbd7 {[%clk 0:02:57]} 6. e3 {[%clk 0:02:57]}  c6 {[%clk 0:02:53]} 7. Bd3 {[%clk 0:02:57]}  Be7 {[%clk 0:02:52]} 8. Nf3 {[%clk 0:02:50]}  O-O {[%clk 0:02:51]} 9. Qc2 {[%clk 0:02:50]}  Re8 {[%clk 0:02:51]} 10. O-O {[%clk 0:02:49]}  Nf8 {[%clk 0:02:51]} 11. h3 {[%clk 0:02:48]}  h6 {[%clk 0:02:49]} 12. Bh4 {[%clk 0:02:48]}  Be6 {[%clk 0:02:46]} 13. Ne5 {[%clk 0:02:48]}  N6d7 {[%clk 0:02:26]} 14. Bxe7 {[%clk 0:02:45]}  Qxe7 {[%clk 0:02:25]} 15. f4 {[%clk 0:02:46]}  Nxe5 {[%clk 0:02:23]} 16. fxe5 {[%clk 0:02:37]}  Rac8 {[%clk 0:02:21]} 17. e4 {[%clk 0:02:35]}  Red8 {[%clk 0:01:51]} 18. exd5 {[%clk 0:02:24]}  cxd5 {[%clk 0:01:47]} 19. Qe2 {[%clk 0:02:10]}  Qh4 {[%clk 0:01:38]} 20. Qf2 {[%clk 0:02:04]}  Qxf2+ {[%clk 0:01:36]} 21. Rxf2 {[%clk 0:02:04]}  a6 {[%clk 0:01:36]} 22. a4 {[%clk 0:02:03]}  Nd7 {[%clk 0:01:17]} 23. Ne2 {[%clk 0:01:53]}  Nb6 {[%clk 0:01:07]} 24. b3 {[%clk 0:01:42]}  Nd7 {[%clk 0:01:04]} 25. Nf4 {[%clk 0:01:18]}  Nf8 {[%clk 0:01:03]} 26. Rc2 {[%clk 0:01:14]}  Rxc2 {[%clk 0:01:01]} 27. Bxc2 {[%clk 0:01:15]}  Rc8 {[%clk 0:01:02]} 28. Nxe6 {[%clk 0:00:58]}  Nxe6 {[%clk 0:00:50]} 29. Rc1 {[%clk 0:00:57]}  Rc6 {[%clk 0:00:40]} 30. Kf2 {[%clk 0:00:12]}  Nxd4 {[%clk 0:00:40]} 31. Ke3 {[%clk 0:00:08]}  Nxc2+ {[%clk 0:00:36]} 32. Kf4 {[%clk 0:00:03]}  d4 {[%clk 0:00:34]} 33. Ke4 {[%clk 0:00:02]}  Kf8 {[%clk 0:00:32]} 34. g4 {[%clk 0:00:01]}  Ke7 {[%clk 0:00:32]} 35. Kd3 {[%clk 0:00:02]}  Nb4+ {[%clk 0:00:31]} 36. Kd2 {[%clk 0:00:02]}  Rxc1 {[%clk 0:00:31]} 37. Kxc1 {[%clk 0:00:03]}  Ke6 {[%clk 0:00:31]} 38. Kd2 {[%clk 0:00:04]}  Kxe5 {[%clk 0:00:31]} 39. h4 {[%clk 0:00:02]}  g5 {[%clk 0:00:30]} 40. hxg5 {[%clk 0:00:02]}  hxg5 {[%clk 0:00:31]} 41. Ke2 {[%clk 0:00:02]}  Kf4 {[%clk 0:00:32]} 42. Kd2 {[%clk 0:00:02]}  Kxg4 {[%clk 0:00:32]} 43. a5 {[%clk 0:00:03]}  Kf4 {[%clk 0:00:32]} 44. Ke2 {[%clk 0:00:04]}  g4 {[%clk 0:00:33]} 45. Kf2 {[%clk 0:00:04]}  g3+ {[%clk 0:00:33]} 46. Kg2 {[%clk 0:00:04]}  d3 {[%clk 0:00:34]} 47. Kf1 {[%clk 0:00:01]}  Kf3 {[%clk 0:00:34]} 48. Kg1 {[%clk 0:00:01]}  d2 {[%clk 0:00:33]} 0-1


[Site "https://www.chess.com"]